bitfinex-derivatives/quotes_BTCF0:USTF0_20251119
["timestamp","ask_amount","ask_price","bid_price","bid_amount"]
[1763595936009,0.00075794,91338.0,91337.0,0.04526803]
[1763595936710,0.02389794,91338.0,91337.0,0.04526803]
[1763595938116,0.04646794,91338.0,91337.0,0.04526803]
[1763595938310,0.04646794,91338.0,91337.0,0.04626803]
[1763595938712,0.04646794,91338.0,91337.0,0.04526803]
[1763595939505,0.02389794,91338.0,91337.0,0.04526803]
[1763595939907,0.00075794,91338.0,91337.0,0.04526803]
[1763595940307,0.0001642,91338.0,91337.0,0.04526803]
[1763595940707,0.10568,91353.0,91337.0,0.04526803]
[1763595940708,0.05929,91360.0,91359.0,0.1526411]
[1763595941013,0.08521177,91360.0,91359.0,0.00219803]
[1763595941309,0.08521177,91360.0,91359.0,0.11176913]
[1763595941506,0.08521177,91360.0,91359.0,0.13372913]
[1763595942097,0.08521177,91360.0,91359.0,0.00219803]
[1763595942301,0.08621177,91360.0,91359.0,0.00219803]
[1763595942915,0.08621177,91360.0,91359.0,0.04526803]
[1763595943502,0.05006177,91360.0,91359.0,0.04526803]
[1763595943707,0.00159374,91360.0,91359.0,0.04526803]
[1763595944017,0.04730374,91360.0,91359.0,0.04526803]
[1763595944803,0.04730374,91360.0,91359.0,0.15483913]
[1763595948014,0.00159374,91360.0,91359.0,0.15483913]
[1763595948615,0.04730374,91360.0,91359.0,0.15483913]
[1763595949411,0.04730374,91360.0,91359.0,0.11176913]
[1763595949611,0.04730374,91360.0,91359.0,0.00219803]
[1763595950510,0.04730374,91360.0,91359.0,0.02415803]
[1763595950713,0.04730374,91360.0,91359.0,0.04526803]
[1763595951418,0.15687364,91360.0,91359.0,0.04526803]
[1763595951611,0.15687364,91360.0,91359.0,0.02415803]
[1763595952517,0.15687364,91360.0,91359.0,0.00219803]
[1763595954623,0.04730374,91360.0,91359.0,0.15483913]
[1763595965819,0.001,91360.0,91359.0,0.15483913]
[1763595966223,0.001,91360.0,91359.0,0.51563913]
[1763595967929,0.0213042,91369.0,91368.0,0.04318]
[1763595968138,0.0213042,91369.0,91368.0,0.04537803]
[1763595968319,0.0001642,91369.0,91368.0,0.15493833]
[1763595968518,0.0001642,91369.0,91368.0,0.51573833]
[1763595969434,0.0011642,91369.0,91368.0,0.51573833]
[1763595970134,0.0021642,91369.0,91368.0,0.51573833]
[1763595970935,0.0233042,91369.0,91368.0,0.51573833]
[1763595971228,0.0021642,91369.0,91368.0,0.51573833]
[1763595971927,0.0462742,91369.0,91368.0,0.51573833]
[1763595977736,0.0233042,91369.0,91368.0,0.51573833]
[1763595978034,0.04411,91378.0,91377.0,0.1527295]
[1763595978235,0.05698,91384.0,91383.0,0.1527223]
[1763595978434,0.02114,91384.0,91383.0,0.15492033]
[1763595978840,0.04411,91384.0,91383.0,0.15492033]
[1763595980037,0.04470374,91384.0,91383.0,0.15492033]
[1763595980441,0.04570374,91384.0,91383.0,0.15492033]
[1763595982437,0.04570374,91384.0,91383.0,0.04537803]
[1763595983040,0.1536619,91375.0,91374.0,0.0001642]
[1763595983236,0.51505564,91375.0,91374.0,0.0001642]
[1763595983437,0.04411,91360.0,91359.0,0.4923311]
[1763595983638,0.04470374,91360.0,91359.0,0.49452913]
[1763595984544,0.04470374,91360.0,91359.0,0.51574913]
[1763595985038,0.04470374,91360.0,91359.0,0.47256913]
[1763595985544,0.04470374,91360.0,91359.0,0.11176913]
[1763595986040,0.04470374,91360.0,91359.0,0.11376913]
[1763595986246,0.04470374,91360.0,91359.0,0.13572913]
[1763595986453,0.04470374,91360.0,91359.0,0.02615803]
[1763595986640,0.04470374,91360.0,91359.0,0.03015803]
[1763595989044,0.04470374,91360.0,91359.0,0.05159803]
[1763595989635,0.04470374,91360.0,91359.0,0.05059803]
[1763595991547,0.04470374,91360.0,91359.0,0.05159803]
[1763595991949,0.04470374,91360.0,91359.0,0.05059803]
[1763595992153,0.04470374,91360.0,91359.0,0.05159803]
[1763595993347,0.0001642,91369.0,91368.0,0.1534803]
[1763595993651,0.0431042,91369.0,91368.0,0.15567833]
[1763595994647,0.04369794,91369.0,91368.0,0.15567833]
[1763595995850,0.04369794,91369.0,91368.0,0.04611803]
[1763595996045,0.04369794,91369.0,91368.0,0.00219803]
[1763595996441,0.04369794,91369.0,91368.0,0.02415803]
[1763595997047,0.04369794,91369.0,91368.0,0.00219803]
[1763595998654,0.04369794,91369.0,91368.0,0.001]
[1763595999053,0.04369794,91369.0,91362.0,0.1095669]
[1763595999255,0.1525063,91363.0,91362.0,0.1095669]
[1763595999557,0.15310004,91363.0,91362.0,0.11176493]
[1763596000550,0.04353374,91363.0,91362.0,0.15568493]
[1763596002243,0.04353374,91363.0,91362.0,0.00219803]
[1763596002657,0.04294,91360.0,91359.0,0.005]
[1763596002860,0.04353374,91360.0,91359.0,0.005]
[1763596005056,0.14913374,91360.0,91359.0,0.005]
[1763596006056,0.1525207,91351.0,91339.0,0.3608]
[1763596006365,0.15311444,91351.0,91339.0,0.3608]
[1763596006663,0.15311444,91351.0,91348.0,0.109584]
[1763596006857,0.25871444,91351.0,91348.0,0.109584]
[1763596007958,0.14913374,91351.0,91348.0,0.109584]
[1763596008363,0.14913374,91351.0,91350.0,0.0011642]
[1763596008565,0.14913374,91351.0,91350.0,0.00336223]
[1763596008965,0.04353374,91351.0,91350.0,0.04776223]
[1763596010664,0.04353374,91351.0,91350.0,0.00336223]
[1763596012170,0.04353374,91351.0,91350.0,0.0011642]
[1763596012760,0.04353374,91351.0,91336.0,0.00013565]
[1763596012761,0.1525375,91337.0,91336.0,0.00013565]
[1763596012960,0.51393124,91337.0,91336.0,0.00013565]
[1763596013458,0.1525507,91326.0,91325.0,0.1096113]
[1763596013653,0.1525507,91326.0,91320.0,0.3608]
[1763596013654,0.1525567,91323.0,91320.0,0.3608]
[1763596013860,0.04353374,91321.0,91320.0,0.3608]
[1763596014458,0.04363684,91321.0,91320.0,0.3608]
[1763596014967,0.04363684,91321.0,91320.0,0.36299803]
[1763596015269,0.04363684,91321.0,91320.0,0.40739803]
[1763596016066,0.04363684,91321.0,91320.0,0.40839803]
[1763596016260,0.04363684,91321.0,91320.0,0.04759803]
[1763596016661,0.04363684,91321.0,91320.0,0.04859803]
[1763596018570,0.04363684,91321.0,91320.0,0.00419803]
[1763596018765,0.04363684,91321.0,91320.0,0.002]
[1763596020074,0.40443684,91321.0,91320.0,0.002]
[1763596020266,0.40443684,91321.0,91320.0,0.04859803]
[1763596020858,0.36149684,91321.0,91320.0,0.04859803]
[1763596021172,0.40443684,91321.0,91320.0,0.04859803]
[1763596021765,0.04363684,91321.0,91320.0,0.04859803]
[1763596025178,0.0001031,91321.0,91320.0,0.04859803]
[1763596026078,0.00069684,91321.0,91320.0,0.04859803]
[1763596026872,0.0001031,91321.0,91320.0,0.04859803]
[1763596032670,0.0001031,91321.0,91320.0,0.15821593]
[1763596033473,0.0001642,91331.0,91330.0,0.1538759]
[1763596033675,0.0001642,91331.0,91330.0,0.15607393]
[1763596034483,0.40556,91340.0,91339.0,0.04427]
[1763596034680,0.40615374,91340.0,91339.0,0.04646803]
[1763596034876,0.04535374,91340.0,91339.0,0.15606313]
[1763596036882,0.04535374,91340.0,91339.0,0.15706313]
[1763596037273,0.04535374,91340.0,91339.0,0.15806313]
[1763596041085,0.02229374,91340.0,91339.0,0.15806313]
[1763596041275,0.04535374,91340.0,91339.0,0.15806313]
[1763596041678,0.0449242,91349.0,91348.0,0.1538543]
[1763596041985,0.0001642,91349.0,91348.0,0.15605233]
[1763596045079,0.0001642,91349.0,91348.0,0.15705233]
[1763596050895,0.0438542,91349.0,91348.0,0.15705233]
[1763596055295,0.04444794,91349.0,91348.0,0.15705233]
[1763596060505,0.0001642,91349.0,91348.0,0.15705233]
[1763596061099,0.04448,91364.0,91363.0,0.1530463]
[1763596061296,0.14260974,91370.0,91363.0,0.1530463]
[1763596061297,0.05748,91368.0,91367.0,0.1530415]
[1763596061498,0.38232,91372.0,91371.0,0.1530367]
[1763596061690,0.3608,91372.0,91371.0,0.15523473]
[1763596062096,0.0138,91385.0,91379.0,0.1530271]
[1763596062097,0.05828,91380.0,91379.0,0.1530271]
[1763596062297,0.02211374,91380.0,91379.0,0.15522513]
[1763596062494,0.02152,91380.0,91379.0,0.15522513]
[1763596062797,0.0446442,91389.0,91384.0,0.1530211]
[1763596062998,0.0216842,91389.0,91388.0,0.15521433]
[1763596063203,0.0446442,91389.0,91388.0,0.15521433]
[1763596063606,0.04523794,91389.0,91388.0,0.15521433]
[1763596065407,0.04623794,91389.0,91388.0,0.15521433]
[1763596066008,0.04723794,91389.0,91388.0,0.15521433]
[1763596067505,0.0466442,91389.0,91388.0,0.15521433]
[1763596067806,0.0236842,91389.0,91388.0,0.15521433]
[1763596068812,0.0466442,91389.0,91388.0,0.15521433]
[1763596072310,0.0021642,91389.0,91388.0,0.15521433]
[1763596072706,0.05828,91404.0,91403.0,0.1529983]
[1763596072912,0.02152,91404.0,91403.0,0.15519633]
[1763596073710,0.0138,91410.0,91405.0,0.04348]
[1763596073916,0.0001642,91413.0,91405.0,0.04567803]
[1763596074116,0.0216842,91413.0,91412.0,0.1529875]
[1763596074316,0.0216842,91413.0,91412.0,0.26078553]
[1763596074517,0.0446442,91413.0,91412.0,0.26078553]
[1763596074810,0.0001642,91413.0,91412.0,0.62158553]
[1763596076012,0.05828,91428.0,91427.0,0.04348]
[1763596076213,0.05887374,91428.0,91427.0,0.04567803]
[1763596076407,0.16836204,91428.0,91427.0,0.04567803]
[1763596077322,0.05887374,91428.0,91427.0,0.04567803]
[1763596078416,0.1539791,91419.0,91418.0,0.00016411]
[1763596078619,0.04448,91395.0,91394.0,0.04348]
[1763596078817,0.00219803,91395.0,91394.0,0.04348]
[1763596079808,0.15620593,91395.0,91394.0,0.04348]
[1763596080013,0.04667803,91395.0,91394.0,0.04348]
[1763596080221,0.00219803,91395.0,91394.0,0.04348]
[1763596080520,0.04464411,91404.0,91403.0,0.04348]
[1763596080821,0.04684214,91404.0,91403.0,0.04348]
[1763596082520,0.04684214,91404.0,91403.0,0.02166]
[1763596082713,0.04684214,91404.0,91394.0,0.001]
[1763596082714,0.1540079,91395.0,91394.0,0.04438]
[1763596082914,0.15620593,91395.0,91394.0,0.04438]
[1763596083118,0.04667803,91395.0,91394.0,0.04338]
[1763596083823,0.02453803,91395.0,91394.0,0.04438]
[1763596084021,0.04667803,91395.0,91394.0,0.04438]
[1763596084619,0.04667803,91395.0,91394.0,0.04538]
[1763596086723,0.00219803,91395.0,91394.0,0.04538]
[1763596087821,0.04464411,91404.0,91403.0,0.04338]
[1763596088016,0.04464411,91404.0,91403.0,0.1528983]
[1763596088324,0.04464411,91404.0,91403.0,0.04338]
[1763596088325,0.04684214,91404.0,91403.0,0.04338]
[1763596088517,0.04684214,91404.0,91394.0,0.002]
[1763596088518,0.04448,91395.0,91394.0,0.1549081]
[1763596090131,0.02234,91395.0,91394.0,0.1539081]
[1763596090323,0.00236214,91404.0,91394.0,0.1539081]
[1763596090324,0.04684214,91404.0,91403.0,0.1528983]
[1763596091519,0.00016411,91404.0,91403.0,0.2594983]
[1763596091825,0.01335,91427.0,91414.0,0.1528851]
[1763596092730,0.00016411,91424.0,91414.0,0.1528851]
[1763596093335,0.10965751,91424.0,91414.0,0.1528851]
[1763596093530,0.00016411,91424.0,91414.0,0.1528851]
[1763596094325,0.04464411,91424.0,91423.0,0.1528743]
[1763596094533,0.04684214,91424.0,91423.0,0.1528743]
[1763596094729,0.04684214,91424.0,91416.0,0.3608]
[1763596094930,0.04684214,91424.0,91416.0,0.38191]
[1763596094931,0.04448,91417.0,91416.0,0.38191]
[1763596095132,0.04667803,91417.0,91416.0,0.40418]
[1763596096336,0.04667803,91417.0,91416.0,0.04338]
[1763596096936,0.04667803,91417.0,91398.0,0.4703235]
[1763596096937,0.05783,91406.0,91398.0,0.3608]
[1763596097131,0.06002803,91406.0,91403.0,0.109518]
[1763596097330,0.06002803,91406.0,91405.0,0.02127411]
[1763596097537,0.06002803,91406.0,91405.0,0.04354411]
[1763596097833,0.38314,91410.0,91409.0,0.04338]
[1763596098034,0.38533803,91410.0,91409.0,0.1528911]
[1763596098335,0.04667803,91410.0,91409.0,0.1528911]
[1763596099637,0.04448,91407.0,91406.0,0.3608]
[1763596099935,0.04448,91406.0,91405.0,0.15305901]
[1763596100134,0.40747803,91406.0,91405.0,0.00016411]
[1763596100929,0.154015,91389.0,91376.0,0.01367]
[1763596101127,0.154015,91389.0,91382.0,0.02111]
[1763596101128,0.04448,91383.0,91382.0,0.02111]
[1763596101335,0.04667803,91383.0,91382.0,0.02111]
[1763596101532,0.04667803,91383.0,91382.0,0.04338]
[1763596101726,0.00219803,91383.0,91382.0,0.04338]
[1763596101927,0.05748411,91392.0,91391.0,0.1529126]
[1763596102138,0.05968214,91392.0,91391.0,0.04338]
[1763596104850,0.00236214,91392.0,91391.0,0.04338]
[1763596105351,0.04684214,91392.0,91391.0,0.04338]
[1763596110851,0.04555,91383.0,91382.0,0.5146734]
[1763596111052,0.04774803,91383.0,91382.0,0.6203134]
[1763596112255,0.04774803,91383.0,91382.0,0.6213134]
[1763596112552,0.04774803,91383.0,91382.0,0.6223134]
[1763596112847,0.04324411,91392.0,91391.0,0.1542826]
[1763596113053,0.04544214,91392.0,91391.0,0.1542826]
[1763596113349,0.04308,91384.0,91383.0,0.40555]
[1763596113543,0.05927803,91384.0,91383.0,0.6206922]
[1763596114845,0.04527803,91384.0,91383.0,0.6206922]
[1763596116244,0.04527803,91384.0,91383.0,0.6216922]
[1763596116858,0.04527803,91384.0,91383.0,0.5160922]
[1763596117259,0.04527803,91384.0,91383.0,0.40655]
[1763596117556,0.04527803,91384.0,91383.0,0.001]
[1763596117952,0.04527803,91384.0,91383.0,0.02281]
[1763596118143,0.04527803,91384.0,91383.0,0.04575]
[1763596119153,0.04527803,91384.0,91383.0,0.04475]
[1763596119351,0.04527803,91384.0,91383.0,0.04575]
[1763596121259,0.04527803,91384.0,91383.0,0.1552922]
[1763596122459,0.04527803,91384.0,91383.0,0.04575]
[1763596122863,0.04527803,91384.0,91383.0,0.02281]
[1763596123059,0.04527803,91384.0,91383.0,0.001]
[1763596123558,0.04527803,91384.0,91375.0,0.1056]
[1763596123559,0.05559,91378.0,91377.0,0.1095493]
[1763596123860,0.16733623,91378.0,91377.0,0.1095493]
[1763596124060,0.16733623,91378.0,91377.0,0.1313593]
[1763596124061,0.05778803,91378.0,91377.0,0.1313593]
[1763596124254,0.05778803,91378.0,91377.0,0.1542993]
[1763596125258,0.05778803,91378.0,91377.0,0.1552993]
[1763596126765,0.05778803,91378.0,91377.0,0.1562993]
[1763596128267,0.16733623,91378.0,91377.0,0.1562993]
[1763596128467,0.05778803,91378.0,91377.0,0.1562993]
[1763596130161,0.02385803,91378.0,91377.0,0.1562993]
[1763596130867,0.05927803,91378.0,91377.0,0.04675]
[1763596141878,0.04527803,91378.0,91377.0,0.04675]
[1763596142577,0.014,91385.0,91377.0,0.04675]
[1763596142578,0.04519,91387.0,91386.0,0.1681085]
[1763596142880,0.04738803,91387.0,91386.0,0.1681085]
[1763596143179,0.04738803,91387.0,91386.0,0.0449]
[1763596143566,0.1653557,91380.0,91379.0,0.0449]
[1763596143769,0.1653557,91380.0,91377.0,0.06031258]
[1763596143770,0.1095493,91377.0,91376.0,0.16786288]
[1763596143973,0.15693733,91377.0,91376.0,0.0449]
[1763596144181,0.15693733,91377.0,91376.0,0.10321258]
[1763596145070,0.15693733,91377.0,91376.0,0.10421258]
[1763596145071,0.04738803,91377.0,91376.0,0.10421258]
[1763596146177,0.04738803,91377.0,91376.0,0.0509]
[1763596147581,0.04738803,91377.0,91376.0,0.0499]
[1763596147783,0.04738803,91377.0,91376.0,0.0509]
[1763596148183,0.04738803,91377.0,91376.0,0.0499]
[1763596148386,0.04738803,91377.0,91376.0,0.0509]
[1763596148775,0.04738803,91377.0,91376.0,0.0519]
[1763596149387,0.04738803,91377.0,91376.0,0.0509]
[1763596150482,0.04738803,91377.0,91376.0,0.0499]
[1763596150679,0.04738803,91377.0,91376.0,0.0509]
[1763596160198,0.3608,91382.0,91381.0,0.1544444]
[1763596160496,0.1547248,91389.0,91388.0,0.0449]
[1763596160697,0.18181984,91389.0,91388.0,0.0449]
[1763596162187,0.18181984,91389.0,91388.0,0.1544361]
[1763596162801,0.1547321,91383.0,91382.0,0.1544422]
[1763596163097,0.15693013,91383.0,91382.0,0.1544422]
[1763596163701,0.04738803,91383.0,91382.0,0.1544422]
[1763596166596,0.15693003,91383.0,91382.0,0.0449]
[1763596168303,0.15693003,91383.0,91364.0,0.00748866]
[1763596168304,0.01554,91365.0,91364.0,0.00748866]
[1763596168604,0.01554,91365.0,91335.0,0.01327]
[1763596168605,0.109596,91338.0,91335.0,0.01327]
[1763596168900,0.1096044,91331.0,91325.0,0.01327]
[1763596169094,0.13682137,91331.0,91325.0,0.01327]
[1763596169297,0.02721697,91331.0,91325.0,0.01327]
[1763596169492,0.02721697,91331.0,91330.0,0.0571]
[1763596169893,0.02731173,91331.0,91330.0,0.0571]
[1763596170098,0.00229279,91331.0,91330.0,0.0571]
[1763596170604,0.02984449,91331.0,91330.0,0.0571]
[1763596171097,0.00229279,91331.0,91330.0,0.0571]
[1763596171297,0.10809279,91331.0,91330.0,0.0571]
[1763596171502,0.00229279,91331.0,91330.0,0.0571]
[1763596173301,0.00229279,91331.0,91330.0,0.0581]
[1763596173499,0.00229279,91331.0,91330.0,0.0591]
[1763596173705,0.00229279,91331.0,91330.0,0.0581]
[1763596173896,0.00229279,91331.0,91330.0,0.0591]
[1763596174297,0.00229279,91331.0,91330.0,0.0581]
[1763596174806,9.476e-05,91331.0,91330.0,0.0581]
[1763596175005,0.3608,91338.0,91337.0,0.1540072]
[1763596175394,0.36299803,91338.0,91337.0,0.1540072]
[1763596176001,0.36305155,91338.0,91337.0,0.1540072]
[1763596176210,0.00225155,91338.0,91337.0,0.1540072]
[1763596177309,0.00225155,91338.0,91337.0,0.1550072]
[1763596177702,0.00225155,91338.0,91337.0,0.1560072]
[1763596179015,0.00225155,91338.0,91337.0,0.04641]
[1763596179214,0.00225155,91338.0,91337.0,0.04541]
[1763596179514,0.00225155,91338.0,91337.0,0.04641]
[1763596181500,5.352e-05,91338.0,91337.0,0.04641]
[1763596183303,0.3608,91346.0,91345.0,0.1539976]
[1763596183509,0.1095511,91376.0,91343.0,0.01294]
[1763596183510,0.3608,91363.0,91359.0,0.1539808]
[1763596183814,0.00219803,91360.0,91359.0,0.1539808]
[1763596187409,0.00219803,91360.0,91359.0,0.04441]
[1763596190009,0.00219803,91360.0,91359.0,0.04541]
[1763596195414,0.50347091,91369.0,91368.0,0.05735]
[1763596195602,0.1095372,91388.0,91378.0,0.153958]
[1763596195603,0.3608,91379.0,91378.0,0.153958]
[1763596195802,0.05918816,91388.0,91387.0,0.1539473]
[1763596195803,0.03945877,91388.0,91387.0,0.1539473]
[1763596196007,0.00219803,91388.0,91387.0,0.04441]
[1763596196215,0.3608,91397.0,91396.0,0.04441]
[1763596196412,0.36299803,91397.0,91396.0,0.1539365]
[1763596196916,0.00219803,91397.0,91396.0,0.1539365]
[1763596198202,0.14294442,91406.0,91405.0,0.1539257]
[1763596198415,0.00263574,91406.0,91405.0,0.1539257]
[1763596199009,0.11215024,91406.0,91405.0,0.04441]
[1763596199218,0.00263574,91406.0,91405.0,0.04441]
[1763596199517,0.11315024,91406.0,91405.0,0.04441]
[1763596199717,0.00463574,91406.0,91405.0,0.04441]
[1763596209019,0.3608,91418.0,91417.0,0.1534313]
[1763596211027,0.3608,91418.0,91417.0,0.1584313]
[1763596211731,0.3608,91418.0,91417.0,0.1534313]
[1763596212042,0.3608,91426.0,91425.0,0.1534217]
[1763596213623,0.0001641,91427.0,91426.0,0.04393]
[1763596215631,0.00236213,91427.0,91426.0,0.04393]
[1763596215832,0.02411213,91427.0,91426.0,0.04393]
[1763596216332,0.00236213,91427.0,91426.0,0.04393]
[1763596216528,0.04636213,91427.0,91426.0,0.1534205]
[1763596217830,0.04636213,91427.0,91426.0,0.04393]
[1763596218435,0.00236213,91427.0,91426.0,0.04393]
[1763596218637,0.04636213,91427.0,91426.0,0.04393]
[1763596222034,0.07572232,91427.0,91426.0,0.04393]
[1763596222935,0.03172232,91427.0,91426.0,0.04393]
[1763596223538,0.02952429,91427.0,91426.0,0.04393]
[1763596225337,1.62e-06,91427.0,91426.0,0.04393]
[1763596226136,1.62e-06,91427.0,91426.0,0.14957]
[1763596226137,0.04663965,91427.0,91426.0,0.14957]
[1763596226742,0.04663965,91427.0,91426.0,0.04393]
[1763596229632,0.04663965,91427.0,91426.0,0.1534205]
[1763596231043,0.04663965,91427.0,91426.0,0.04393]
[1763596235450,0.08609842,91427.0,91426.0,0.04393]
[1763596236154,0.04663965,91427.0,91426.0,0.04393]
[1763596236451,0.1095107,91410.0,91408.0,0.0001641]
[1763596236745,0.04571803,91409.0,91408.0,0.0230541]
[1763596236951,0.04352,91393.0,91392.0,0.05728]
[1763596237136,0.15524813,91393.0,91392.0,0.05728]
[1763596237336,0.18415636,91393.0,91392.0,0.05728]
[1763596237639,0.18415636,91393.0,91392.0,0.04433]
[1763596237840,0.18415636,91393.0,91392.0,0.02289]
[1763596238752,0.18415636,91393.0,91386.0,0.05728]
[1763596238753,0.1530572,91387.0,91386.0,0.05728]
[1763596239053,0.07462626,91387.0,91386.0,0.05728]
[1763596241050,0.18416356,91387.0,91386.0,0.05728]
[1763596245360,0.15525533,91387.0,91386.0,0.05728]
[1763596245743,0.15525533,91387.0,91386.0,0.04433]
[1763596245744,0.18405972,91387.0,91386.0,0.04433]
[1763596245948,0.1530608,91384.0,91383.0,0.0230541]
[1763596246149,0.15525883,91384.0,91383.0,0.0001641]
[1763596246854,0.15525883,91384.0,91371.0,0.02289]
[1763596246855,0.1530752,91372.0,91371.0,0.02289]
[1763596247049,0.04352,91371.0,91370.0,0.38369]
[1763596247254,0.04571803,91371.0,91370.0,0.38369]
[1763596248041,0.04571803,91371.0,91370.0,0.02289]
[1763596249455,0.1530812,91367.0,91366.0,0.02316363]
[1763596249662,0.15527923,91367.0,91366.0,0.00027363]
[1763596250751,0.15527923,91367.0,91366.0,0.00127363]
[1763596258359,0.04571803,91367.0,91366.0,0.00127363]
[1763596260458,0.1530872,91362.0,91361.0,0.0001641]
[1763596260657,0.26096523,91362.0,91361.0,0.0001641]
[1763596260867,0.26096523,91362.0,91361.0,0.0444941]
[1763596261769,0.00219803,91362.0,91361.0,0.0444941]
[1763596261959,0.10787803,91362.0,91361.0,0.0444941]
[1763596262362,0.00219803,91362.0,91361.0,0.0444941]
[1763596262562,0.02345803,91362.0,91361.0,0.0444941]
[1763596262763,0.04459803,91362.0,91361.0,0.0444941]
[1763596262966,0.00219803,91362.0,91361.0,0.0444941]
[1763596263165,0.10568,91370.0,91369.0,0.1520788]
[1763596263369,0.00219803,91370.0,91369.0,0.1520788]
[1763596265471,0.03080996,91370.0,91369.0,0.1520788]
[1763596266063,0.05273398,91370.0,91369.0,0.1520788]
[1763596267070,0.07387398,91370.0,91369.0,0.1520788]
[1763596268275,0.07387398,91370.0,91369.0,0.04252]
[1763596271369,0.03083398,91370.0,91369.0,0.04252]
[1763596274179,0.05273398,91370.0,91369.0,0.04252]
[1763596274372,0.2227687,91370.0,91369.0,0.04252]
[1763596274587,0.18343158,91370.0,91369.0,0.04252]
[1763596275266,0.1526072,91362.0,91361.0,0.0212941]
[1763596275478,0.18344118,91362.0,91361.0,0.0212941]
[1763596275679,0.18344118,91362.0,91361.0,0.0426841]
[1763596276377,0.22284732,91362.0,91361.0,0.0426841]
[1763596279480,0.18344118,91362.0,91361.0,0.0426841]
[1763596279980,0.03083398,91362.0,91361.0,0.0426841]
[1763596283280,0.02863595,91362.0,91361.0,0.0426841]
[1763596283482,0.3608,91366.0,91365.0,0.1520836]
[1763596283781,0.41361557,91366.0,91365.0,0.1520836]
[1763596284078,0.43475557,91366.0,91365.0,0.1520836]
[1763596284472,0.41361557,91366.0,91365.0,0.1520836]
[1763596284775,0.05281557,91366.0,91365.0,0.1520836]
[1763596285182,0.07395557,91366.0,91365.0,0.1520836]
[1763596285980,0.07395557,91366.0,91365.0,0.04252]
[1763596292868,0.18351797,91366.0,91365.0,0.04252]
[1763596293287,0.07395557,91366.0,91365.0,0.04252]
[1763596293986,0.07395557,91366.0,91365.0,0.05636]
[1763596295182,0.02582323,91379.0,91378.0,0.04478]
[1763596295383,0.02582323,91404.0,91403.0,0.04478]
[1763596295690,0.00219803,91404.0,91403.0,0.1542981]
[1763596297384,0.00219803,91404.0,91403.0,0.1552981]
[1763596297982,0.04592803,91404.0,91403.0,0.1552981]
[1763596298587,0.04592803,91404.0,91403.0,0.04578]
[1763596298783,0.04592803,91404.0,91403.0,0.04478]
[1763596299085,0.04592803,91404.0,91403.0,0.04578]
[1763596299479,0.04373,91396.0,91395.0,0.05862]
[1763596299680,0.04592803,91396.0,91395.0,0.05862]
[1763596301295,0.04592803,91396.0,91395.0,0.05962]
[1763596301682,0.04592803,91396.0,91395.0,0.06062]
[1763596301986,0.02389803,91396.0,91395.0,0.05962]
[1763596302789,0.02389803,91396.0,91395.0,0.05862]
[1763596302988,0.02389803,91396.0,91395.0,0.05962]
[1763596304083,0.00219803,91396.0,91395.0,0.05962]
[1763596304592,0.04592803,91396.0,91395.0,0.05962]
[1763596304888,0.00219803,91396.0,91395.0,0.05962]
[1763596305887,0.00219803,91396.0,91395.0,0.05862]
[1763596306088,0.00219803,91396.0,91395.0,0.05962]
[1763596306589,0.02389803,91396.0,91395.0,0.05962]
[1763596307798,0.04592803,91396.0,91395.0,0.05962]
[1763596308487,0.04592803,91396.0,91395.0,0.06062]
[1763596309096,0.04592803,91396.0,91395.0,0.05962]
[1763596309291,0.04592803,91396.0,91395.0,0.06062]
[1763596309887,0.04592803,91396.0,91395.0,0.02462]
[1763596310100,0.04592803,91396.0,91395.0,0.04678]
[1763596310800,0.04592803,91396.0,91395.0,0.04578]
[1763596316999,0.04592803,91396.0,91395.0,0.05962]
[1763596318299,0.04592803,91396.0,91395.0,0.04578]
[1763596318499,0.04592803,91396.0,91395.0,0.001]
[1763596319905,0.04592803,91396.0,91394.0,0.0001641]
[1763596319906,0.1532577,91395.0,91394.0,0.0001641]
[1763596320104,0.15545573,91395.0,91394.0,0.0001641]
[1763596321708,0.1532684,91386.0,91385.0,0.1095387]
[1763596322006,0.15546643,91386.0,91385.0,0.1535787]
[1763596322210,0.04592803,91386.0,91385.0,0.1672287]
[1763596323907,0.00219803,91386.0,91385.0,0.1672287]
[1763596325010,0.00219803,91386.0,91385.0,0.20607912]
[1763596325204,0.00219803,91386.0,91385.0,0.1682287]
[1763596325509,0.0462441,91395.0,91394.0,0.1538188]
[1763596325705,0.00236213,91395.0,91394.0,0.1538188]
[1763596326306,0.02537213,91395.0,91394.0,0.1538188]
[1763596326612,0.02537213,91395.0,91394.0,0.19279634]
[1763596326808,0.02537213,91395.0,91394.0,0.1538188]
[1763596327112,0.04844213,91395.0,91394.0,0.08326754]
[1763596327306,0.04844213,91395.0,91394.0,0.02287]
[1763596327513,0.1556088,91394.0,91393.0,0.02287]
[1763596327811,0.15780683,91394.0,91393.0,0.02287]
[1763596328006,0.15780683,91394.0,91393.0,0.04429]
[1763596329013,0.04827803,91394.0,91393.0,0.04429]
[1763596329410,0.00219803,91394.0,91393.0,0.04429]
[1763596330612,0.00219803,91394.0,91393.0,0.10256563]
[1763596330810,0.00219803,91394.0,91393.0,0.04529]
[1763596331218,0.00219803,91394.0,91393.0,0.04629]
[1763596331912,0.00219803,91394.0,91393.0,0.10500821]
[1763596332100,0.00219803,91394.0,91393.0,0.04629]
[1763596332914,0.00219803,91394.0,91393.0,0.04529]
[1763596333113,0.00219803,91394.0,91393.0,0.04629]
[1763596333818,0.00219803,91394.0,91393.0,0.04429]
[1763596334014,0.00219803,91394.0,91393.0,0.04529]
[1763596334224,0.04827803,91394.0,91393.0,0.04529]
[1763596336221,0.04827803,91394.0,91393.0,0.04429]
[1763596336406,0.04827803,91394.0,91393.0,0.08342011]
[1763596336824,0.00219803,91394.0,91393.0,0.04429]
[1763596337212,0.00219803,91394.0,91393.0,0.10300821]
[1763596337418,0.0001641,91395.0,91394.0,0.1538188]
[1763596338220,0.0001641,91395.0,91394.0,0.21253701]
[1763596339724,0.0001641,91395.0,91394.0,0.21353701]
[1763596342226,0.0001641,91395.0,91394.0,0.1548188]
[1763596343533,0.0001641,91395.0,91394.0,0.1538188]
[1763596343726,0.0001641,91395.0,91394.0,0.1548188]
[1763596345321,0.0001641,91395.0,91394.0,0.1538188]
[1763596345522,0.0001641,91395.0,91394.0,0.1548188]
[1763596345923,0.0001641,91395.0,91394.0,0.1538188]
[1763596346124,0.0001641,91395.0,91394.0,0.1548188]
[1763596347238,0.00236213,91395.0,91394.0,0.1548188]
[1763596347435,0.15609973,91395.0,91394.0,0.04529]
[1763596349333,0.1533436,91390.0,91389.0,0.10482821]
[1763596349628,0.51634163,91390.0,91389.0,0.04611]
[1763596350833,0.51634163,91390.0,91389.0,0.04711]
[1763596351632,0.51634163,91390.0,91389.0,0.04811]
[1763596352044,0.51634163,91390.0,91389.0,0.002]